[Event "Live Chess"]
[Site "Chess.com"]
[Date "2023.05.21"]
[Round "-"]
[White "luckywookie"]
[Black "worldchessleaguelive"]
[Result "0-1"]
[WhiteElo "771"]
[BlackElo "1360"]
[TimeControl "300"]
[EndTime "4:51:33 PDT"]
[Termination "worldchessleaguelive won by checkmate"]

1. e4 {[%clk 0:04:56]} 1... d5 {[%clk 0:04:59]} 2. exd5 {[%clk 0:04:53.2]} 2...
Qxd5 {[%clk 0:04:58.2]} 3. Nc3 {[%clk 0:04:50.5]} 3... Qd8 {[%clk 0:04:57.3]} 4.
Nf3 {[%clk 0:04:48.2]} 4... Nf6 {[%clk 0:04:56.8]} 5. d4 {[%clk 0:04:37.8]} 5...
c6 {[%clk 0:04:50.8]} 6. Bd3 {[%clk 0:04:24.2]} 6... Bg4 {[%clk 0:04:40.7]} 7.
Be3 {[%clk 0:04:02.7]} 7... Nbd7 {[%clk 0:04:28.7]} 8. h3 {[%clk 0:03:58.8]}
8... Bxf3 {[%clk 0:04:27.7]} 9. Qxf3 {[%clk 0:03:57]} 9... e6 {[%clk 0:04:27.4]}
10. Bg5 {[%clk 0:03:45.8]} 10... Be7 {[%clk 0:04:26.5]} 11. Bxf6 {[%clk
0:03:39.9]} 11... Bxf6 {[%clk 0:04:24.5]} 12. Ne4 {[%clk 0:03:38.7]} 12... O-O
{[%clk 0:04:04.4]} 13. h4 {[%clk 0:03:15.5]} 13... Bxd4 {[%clk 0:04:01.4]} 14.
c3 {[%clk 0:03:09.9]} 14... Ne5 {[%clk 0:03:53]} 15. Qf4 {[%clk 0:02:57.2]}
15... Nxd3+ {[%clk 0:03:51.5]} 16. Ke2 {[%clk 0:02:54.2]} 16... Nxf4+ {[%clk
0:03:50.4]} 17. Kf3 {[%clk 0:02:51.9]} 17... e5 {[%clk 0:03:38.3]} 18. Rad1
{[%clk 0:02:50.3]} 18... Qb6 {[%clk 0:03:29.7]} 19. cxd4 {[%clk 0:02:48.2]}
19... Qxb2 {[%clk 0:03:23.2]} 20. dxe5 {[%clk 0:02:42.7]} 20... Ne6 {[%clk
0:03:17.1]} 21. Ng5 {[%clk 0:02:19.9]} 21... Nxg5+ {[%clk 0:03:15.1]} 22. hxg5
{[%clk 0:02:18.7]} 22... Qxa2 {[%clk 0:03:10.8]} 23. g6 {[%clk 0:02:16.5]} 23...
fxg6+ {[%clk 0:03:08.9]} 24. Kg4 {[%clk 0:02:14]} 24... Qxf2 {[%clk 0:03:06.4]}
25. Rd7 {[%clk 0:02:05.2]} 25... Rf4+ {[%clk 0:03:03.7]} 26. Kg5 {[%clk
0:02:03.6]} 26... h6+ {[%clk 0:03:00.7]} 27. Rxh6 {[%clk 0:01:59.7]} 27... gxh6+
{[%clk 0:02:58.7]} 28. Kxg6 {[%clk 0:01:57.9]} 28... Qxg2+ {[%clk 0:02:56.3]}
29. Kxh6 {[%clk 0:01:55.8]} 29... Qh3+ {[%clk 0:02:53.9]} 30. Kg6 {[%clk
0:01:47.7]} 30... Qxd7 {[%clk 0:02:49.6]} 31. Kg5 {[%clk 0:01:44.9]} 31... Qg4+
{[%clk 0:02:43.7]} 32. Kh6 {[%clk 0:01:41.1]} 32... Raf8 {[%clk 0:02:37.7]} 33.
e6 {[%clk 0:01:39.8]} 33... R8f6# {[%clk 0:02:36.5]} 0-1

[Event "Live Chess"]
[Site "Chess.com"]
[Date "2023.05.21"]
[Round "-"]
[White "jumush"]
[Black "matt1979"]
[Result "1-0"]
[WhiteElo "1753"]
[BlackElo "1541"]
[TimeControl "300"]
[EndTime "4:51:36 PDT"]
[Termination "jumush won by resignation"]

1. e4 {[%clk 0:04:51.4]} 1... c5 {[%clk 0:04:57.4]} 2. Nc3 {[%clk 0:04:49.8]}
2... Nc6 {[%clk 0:04:56]} 3. Bb5 {[%clk 0:04:47.5]} 3... g6 {[%clk 0:04:52.6]}
4. Bxc6 {[%clk 0:04:44]} 4... dxc6 {[%clk 0:04:50.9]} 5. d3 {[%clk 0:04:42.2]}
5... Bg7 {[%clk 0:04:49.3]} 6. f4 {[%clk 0:04:38.8]} 6... Nf6 {[%clk 0:04:35.3]}
7. Nf3 {[%clk 0:04:37]} 7... Bg4 {[%clk 0:04:33.4]} 8. O-O {[%clk 0:04:35.1]}
8... O-O {[%clk 0:04:31]} 9. Bd2 {[%clk 0:04:32.7]} 9... Nd7 {[%clk 0:04:08.2]}
10. h3 {[%clk 0:04:29.9]} 10... Bxf3 {[%clk 0:04:06]} 11. Qxf3 {[%clk
0:04:28.1]} 11... Qc7 {[%clk 0:03:56.8]} 12. Rad1 {[%clk 0:04:24.8]} 12... b5
{[%clk 0:03:54.4]} 13. b3 {[%clk 0:04:20.1]} 13... b4 {[%clk 0:03:52.3]} 14. Ne2
{[%clk 0:04:18.2]} 14... f5 {[%clk 0:03:43.9]} 15. e5 {[%clk 0:04:15.8]} 15...
e6 {[%clk 0:03:40.9]} 16. h4 {[%clk 0:04:07.2]} 16... Qb6 {[%clk 0:03:35.4]} 17.
Kh2 {[%clk 0:04:04.3]} 17... Qd8 {[%clk 0:03:32.5]} 18. g3 {[%clk 0:04:01.9]}
18... Rc8 {[%clk 0:03:25.5]} 19. Kg2 {[%clk 0:04:00]} 19... Nb6 {[%clk
0:03:22.4]} 20. h5 {[%clk 0:03:58]} 20... Nd5 {[%clk 0:03:19]} 21. hxg6 {[%clk
0:03:54.4]} 21... hxg6 {[%clk 0:03:17.6]} 22. Rh1 {[%clk 0:03:52.9]} 22... Ne7
{[%clk 0:03:07.1]} 23. Rdg1 {[%clk 0:03:48.7]} 23... Qd5 {[%clk 0:03:05.5]} 24.
c4 {[%clk 0:03:35.7]} 24... Qxf3+ {[%clk 0:03:02.8]} 25. Kxf3 {[%clk 0:03:33.6]}
25... Rcd8 {[%clk 0:03:01.1]} 26. Nc1 {[%clk 0:03:29.3]} 26... Rd4 {[%clk
0:02:51.8]} 27. Be3 {[%clk 0:03:25.2]} 27... Rd7 {[%clk 0:02:49.2]} 28. Rd1
{[%clk 0:03:23.2]} 28... Rfd8 {[%clk 0:02:38.6]} 29. Bxc5 {[%clk 0:03:21]} 29...
a6 {[%clk 0:02:37]} 30. Rd2 {[%clk 0:03:19.4]} 30... Bf8 {[%clk 0:02:30]} 31.
Bxe7 {[%clk 0:03:13.6]} 31... Bxe7 {[%clk 0:02:28.7]} 32. Rhd1 {[%clk
0:03:09.7]} 32... a5 {[%clk 0:02:26.7]} 33. d4 {[%clk 0:03:08.1]} 33... c5
{[%clk 0:02:24.8]} 34. Ne2 {[%clk 0:03:05.7]} 34... cxd4 {[%clk 0:02:23.1]} 35.
Rxd4 {[%clk 0:03:04.1]} 35... Rxd4 {[%clk 0:02:17]} 36. Rxd4 {[%clk 0:03:02.5]}
36... Kf7 {[%clk 0:02:14.8]} 37. Rxd8 {[%clk 0:03:00.3]} 37... Bxd8 {[%clk
0:02:13.8]} 38. Nd4 {[%clk 0:02:59]} 38... Bb6 {[%clk 0:02:10.8]} 39. Ke3 {[%clk
0:02:52.3]} 39... Kg7 {[%clk 0:02:03]} 40. Kd3 {[%clk 0:02:49.7]} 40... Kf7
{[%clk 0:02:00.8]} 41. Ke3 {[%clk 0:02:21.7]} 41... Bc7 {[%clk 0:01:56.7]} 42.
c5 {[%clk 0:02:12.4]} 42... g5 {[%clk 0:01:54.3]} 43. Kd3 {[%clk 0:02:08.4]}
43... gxf4 {[%clk 0:01:51.7]} 44. gxf4 {[%clk 0:02:06.7]} 44... Bb8 {[%clk
0:01:46.5]} 45. Kc4 {[%clk 0:02:03]} 45... Bc7 {[%clk 0:01:44.9]} 46. Kb5 {[%clk
0:02:01.5]} 46... Ke7 {[%clk 0:01:42.6]} 47. Kc6 {[%clk 0:01:59.7]} 47... Bd8
{[%clk 0:01:40.9]} 48. Kb7 {[%clk 0:01:55.7]} 48... Kf7 {[%clk 0:01:33.8]} 49.
c6 {[%clk 0:01:53.5]} 49... Ke7 {[%clk 0:01:30.2]} 50. c7 {[%clk 0:01:51.6]}
50... Bxc7 {[%clk 0:01:29.1]} 51. Kxc7 {[%clk 0:01:49.7]} 1-0

[Event "Live Chess"]
[Site "Chess.com"]
[Date "2023.05.21"]
[Round "-"]
[White "viktorskliarov"]
[Black "AMCWAML"]
[Result "1-0"]
[WhiteElo "2656"]
[BlackElo "2330"]
[TimeControl "300"]
[EndTime "4:51:48 PDT"]
[Termination "viktorskliarov won by resignation"]

1. e4 {[%clk 0:04:58.3]} 1... c5 {[%clk 0:04:58.7]} 2. Nf3 {[%clk 0:04:53.2]}
2... d6 {[%clk 0:04:57.6]} 3. d4 {[%clk 0:04:51.4]} 3... cxd4 {[%clk 0:04:57.5]}
4. Qxd4 {[%clk 0:04:50.2]} 4... a6 {[%clk 0:04:55.3]} 5. Be3 {[%clk 0:04:48.8]}
5... Nf6 {[%clk 0:04:54.4]} 6. Nc3 {[%clk 0:04:47.6]} 6... Nc6 {[%clk
0:04:51.2]} 7. Qd2 {[%clk 0:04:46.7]} 7... Ng4 {[%clk 0:04:49.3]} 8. Bg5 {[%clk
0:04:41]} 8... h6 {[%clk 0:04:43.8]} 9. Bh4 {[%clk 0:04:39.6]} 9... g5 {[%clk
0:04:35.7]} 10. Bg3 {[%clk 0:04:38.2]} 10... Bg7 {[%clk 0:04:34.1]} 11. h4
{[%clk 0:04:31.7]} 11... gxh4 {[%clk 0:04:02.5]} 12. Nxh4 {[%clk 0:04:30.5]}
12... Bd7 {[%clk 0:03:26.6]} 13. f3 {[%clk 0:04:00]} 13... Nge5 {[%clk 0:03:23]}
14. Nf5 {[%clk 0:03:58.8]} 14... Bxf5 {[%clk 0:03:15.8]} 15. exf5 {[%clk
0:03:58.7]} 15... b5 {[%clk 0:03:10.3]} 16. Nd5 {[%clk 0:03:55.1]} 16... Nd4
{[%clk 0:02:41.6]} 17. Bxe5 {[%clk 0:02:55.9]} 17... Bxe5 {[%clk 0:02:16.1]} 18.
f4 {[%clk 0:02:53.7]} 18... Bg7 {[%clk 0:02:03.9]} 19. f6 {[%clk 0:02:51]} 19...
exf6 {[%clk 0:01:20.1]} 20. Qxd4 {[%clk 0:02:48.6]} 20... O-O {[%clk 0:01:19.6]}
21. O-O-O {[%clk 0:02:41.9]} 21... f5 {[%clk 0:01:11.8]} 22. Qd3 {[%clk
0:02:39]} 22... Qf6 {[%clk 0:01:09.3]} 23. Nxf6+ {[%clk 0:02:37.3]} 1-0

[Event "Live Chess"]
[Site "Chess.com"]
[Date "2023.05.21"]
[Round "-"]
[White "WelshTiger"]
[Black "djw60"]
[Result "1/2-1/2"]
[WhiteElo "2306"]
[BlackElo "2148"]
[TimeControl "300"]
[EndTime "4:52:09 PDT"]
[Termination "Game drawn by repetition"]

1. e4 {[%clk 0:04:55.7]} 1... e6 {[%clk 0:04:58.4]} 2. Nf3 {[%clk 0:04:52.7]}
2... d5 {[%clk 0:04:56.9]} 3. e5 {[%clk 0:04:51.9]} 3... c5 {[%clk 0:04:54.9]}
4. b4 {[%clk 0:04:51.2]} 4... b6 {[%clk 0:04:54]} 5. Bb5+ {[%clk 0:04:40.8]}
5... Bd7 {[%clk 0:04:52.2]} 6. Bxd7+ {[%clk 0:04:39.5]} 6... Qxd7 {[%clk
0:04:49.3]} 7. bxc5 {[%clk 0:04:36.9]} 7... bxc5 {[%clk 0:04:47.5]} 8. O-O
{[%clk 0:04:35.1]} 8... Nh6 {[%clk 0:04:45]} 9. d3 {[%clk 0:04:27]} 9... Nc6
{[%clk 0:04:40.4]} 10. Bxh6 {[%clk 0:04:14.5]} 10... gxh6 {[%clk 0:04:40.3]} 11.
c4 {[%clk 0:04:12.6]} 11... dxc4 {[%clk 0:04:33.1]} 12. dxc4 {[%clk 0:04:11.1]}
12... Qxd1 {[%clk 0:04:31.4]} 13. Rxd1 {[%clk 0:04:10.2]} 13... Bg7 {[%clk
0:04:28.7]} 14. Re1 {[%clk 0:04:04.7]} 14... Ke7 {[%clk 0:04:19.4]} 15. Nc3
{[%clk 0:04:03.7]} 15... Rac8 {[%clk 0:04:13.2]} 16. Nb5 {[%clk 0:04:02]} 16...
a6 {[%clk 0:03:58.1]} 17. Nc3 {[%clk 0:03:40.8]} 17... Rhd8 {[%clk 0:03:53.7]}
18. Rab1 {[%clk 0:03:39.5]} 18... Rc7 {[%clk 0:03:50.9]} 19. Na4 {[%clk
0:03:35.2]} 19... Nd4 {[%clk 0:03:46.2]} 20. Nxd4 {[%clk 0:03:00.7]} 20... Rxd4
{[%clk 0:03:43.4]} 21. Nb6 {[%clk 0:02:55.8]} 21... Rc6 {[%clk 0:03:14]} 22. a4
{[%clk 0:02:53.2]} 22... Bxe5 {[%clk 0:03:06.6]} 23. Nd5+ {[%clk 0:02:42.7]}
23... exd5 {[%clk 0:03:00.4]} 24. cxd5 {[%clk 0:02:35.2]} 24... Rd6 {[%clk
0:02:49.4]} 25. Rxe5+ {[%clk 0:02:33.2]} 25... Kf6 {[%clk 0:02:48.6]} 26. Ree1
{[%clk 0:02:19.4]} 26... R4xd5 {[%clk 0:02:44.8]} 27. g3 {[%clk 0:02:19]} 27...
c4 {[%clk 0:02:42.7]} 28. Re4 {[%clk 0:02:14.7]} 28... Rc5 {[%clk 0:02:40.7]}
29. Rc1 {[%clk 0:02:12.5]} 29... c3 {[%clk 0:02:39.4]} 30. Kf1 {[%clk
0:02:10.9]} 30... c2 {[%clk 0:02:19.5]} 31. Ke2 {[%clk 0:02:07.9]} 31... Kg6
{[%clk 0:02:02.4]} 32. Rb4 {[%clk 0:01:49.7]} 32... a5 {[%clk 0:01:55.2]} 33.
Rb2 {[%clk 0:01:48.5]} 33... Rdc6 {[%clk 0:01:51.9]} 34. Kd2 {[%clk 0:01:47.8]}
34... Rd6+ {[%clk 0:01:49.2]} 35. Ke2 {[%clk 0:01:46.8]} 35... Rdc6 {[%clk
0:01:48.6]} 36. Kd2 {[%clk 0:01:46.2]} 36... Rd6+ {[%clk 0:01:47.9]} 37. Ke2
{[%clk 0:01:45.7]} 1/2-1/2

[Event "Live Chess"]
[Site "Chess.com"]
[Date "2023.05.21"]
[Round "-"]
[White "GMHarry-youtube"]
[Black "RockTroll"]
[Result "0-1"]
[WhiteElo "2028"]
[BlackElo "2236"]
[TimeControl "300"]
[EndTime "4:52:15 PDT"]
[Termination "RockTroll won on time"]

1. e4 {[%clk 0:04:58.1]} 1... e5 {[%clk 0:04:57.9]} 2. Nf3 {[%clk 0:04:57.1]}
2... Nc6 {[%clk 0:04:56.4]} 3. Bc4 {[%clk 0:04:56.7]} 3... Bc5 {[%clk
0:04:54.8]} 4. c3 {[%clk 0:04:55]} 4... Nf6 {[%clk 0:04:53.7]} 5. d3 {[%clk
0:04:54.4]} 5... d6 {[%clk 0:04:52.1]} 6. O-O {[%clk 0:04:53.4]} 6... h6 {[%clk
0:04:48.8]} 7. a4 {[%clk 0:04:50.5]} 7... a5 {[%clk 0:04:47.7]} 8. Nbd2 {[%clk
0:04:44.8]} 8... Ba7 {[%clk 0:04:43.7]} 9. Re1 {[%clk 0:04:38.9]} 9... g5 {[%clk
0:04:41.8]} 10. Nf1 {[%clk 0:04:25.9]} 10... g4 {[%clk 0:04:40.1]} 11. Nh4
{[%clk 0:04:24.1]} 11... Nxe4 {[%clk 0:04:32.1]} 12. dxe4 {[%clk 0:04:04.2]}
12... Qxh4 {[%clk 0:04:22.8]} 13. g3 {[%clk 0:03:56.6]} 13... Qh3 {[%clk
0:04:17.9]} 14. Be3 {[%clk 0:03:24.4]} 14... h5 {[%clk 0:04:12.8]} 15. Qb3
{[%clk 0:03:18.5]} 15... h4 {[%clk 0:03:55.8]} 16. Bxf7+ {[%clk 0:03:16.1]}
16... Kf8 {[%clk 0:03:54.9]} 17. Bg6 {[%clk 0:03:10.7]} 17... Nd8 {[%clk
0:03:44.8]} 18. Kh1 {[%clk 0:02:42.1]} 18... Be6 {[%clk 0:03:40.6]} 19. Qc2
{[%clk 0:02:35.6]} 19... Bxe3 {[%clk 0:03:22.7]} 20. fxe3 {[%clk 0:02:31.5]}
20... Kg7 {[%clk 0:03:18.2]} 21. Bf5 {[%clk 0:02:26.7]} 21... Bxf5 {[%clk
0:03:17.6]} 22. exf5 {[%clk 0:02:25.2]} 22... hxg3 {[%clk 0:03:16.9]} 23. Qg2
{[%clk 0:02:11.9]} 23... gxh2 {[%clk 0:03:09.9]} 24. Ng3 {[%clk 0:01:53.5]}
24... Nf7 {[%clk 0:02:58.4]} 25. Rf1 {[%clk 0:01:27.1]} 25... Ng5 {[%clk
0:02:53]} 26. f6+ {[%clk 0:01:25.8]} 26... Kf7 {[%clk 0:02:52.2]} 27. Qd5+
{[%clk 0:01:23.6]} 27... Ne6 {[%clk 0:02:50.8]} 28. Nf5 {[%clk 0:01:07.4]} 28...
g3 {[%clk 0:02:43.2]} 29. Ng7 {[%clk 0:00:57.9]} 29... c6 {[%clk 0:02:32.9]} 30.
Qxe6+ {[%clk 0:00:37.4]} 30... Qxe6 {[%clk 0:02:31.2]} 31. Nxe6 {[%clk
0:00:37.3]} 31... Kxe6 {[%clk 0:02:30.3]} 32. Kg2 {[%clk 0:00:37.2]} 32... Raf8
{[%clk 0:02:24.9]} 33. Rf3 {[%clk 0:00:36]} 33... Rxf6 {[%clk 0:02:22.1]} 34.
Rxg3 {[%clk 0:00:35.1]} 34... Rfh6 {[%clk 0:02:14.4]} 35. Rh1 {[%clk 0:00:31.1]}
35... Kd5 {[%clk 0:02:12.7]} 36. Kf2 {[%clk 0:00:28]} 36... Kc4 {[%clk
0:02:06.6]} 37. Rg2 {[%clk 0:00:24.6]} 37... Kb3 {[%clk 0:02:03]} 38. Kf3 {[%clk
0:00:22.7]} 38... Rf8+ {[%clk 0:01:59.4]} 39. Ke4 {[%clk 0:00:21.7]} 39... Rh4+
{[%clk 0:01:57.4]} 40. Kd3 {[%clk 0:00:20.5]} 40... Rfh8 {[%clk 0:01:55.8]} 41.
Ra1 {[%clk 0:00:17.3]} 41... Rxa4 {[%clk 0:01:51.7]} 42. Rh1 {[%clk 0:00:08.3]}
42... Ra2 {[%clk 0:01:45.5]} 43. c4 {[%clk 0:00:04.1]} 43... Rxb2 {[%clk
0:01:43.6]} 44. Rxb2+ {[%clk 0:00:04]} 44... Kxb2 {[%clk 0:01:43]} 45. Ke2
{[%clk 0:00:03.3]} 45... Kc3 {[%clk 0:01:41.3]} 46. c5 {[%clk 0:00:03.2]} 46...
dxc5 {[%clk 0:01:39.9]} 47. Rc1+ {[%clk 0:00:03.1]} 47... Kb4 {[%clk 0:01:38.6]}
48. Rh1 {[%clk 0:00:03]} 48... a4 {[%clk 0:01:37.7]} 49. Rb1+ {[%clk 0:00:02.9]}
49... Ka5 {[%clk 0:01:36.4]} 50. Rh1 {[%clk 0:00:02.8]} 50... b5 {[%clk
0:01:35.2]} 51. Kd2 {[%clk 0:00:01.9]} 51... b4 {[%clk 0:01:34.5]} 52. Kc2
{[%clk 0:00:01.8]} 52... Kb5 {[%clk 0:01:33.9]} 53. Kb2 {[%clk 0:00:01.7]} 53...
c4 {[%clk 0:01:33.3]} 54. Ka2 {[%clk 0:00:01.6]} 54... c5 {[%clk 0:01:32.7]} 55.
Ka1 {[%clk 0:00:01.5]} 55... e4 {[%clk 0:01:32.1]} 56. Kb1 {[%clk 0:00:01.4]}
56... c3 {[%clk 0:01:31.6]} 57. Ka1 {[%clk 0:00:00.3]} 57... Kc4 {[%clk
0:01:30]} 58. Kb1 {[%clk 0:00:00.2]} 58... Kd3 {[%clk 0:01:29.4]} 59. Ka1 {[%clk
0:00:00.1]} 59... Kxe3 {[%clk 0:01:28.7]} 0-1

[Event "Live Chess"]
[Site "Chess.com"]
[Date "2023.05.21"]
[Round "-"]
[White "HoarseyHorsey"]
[Black "Crowded_House"]
[Result "1-0"]
[WhiteElo "1477"]
[BlackElo "1632"]
[TimeControl "300"]
[EndTime "4:52:18 PDT"]
[Termination "HoarseyHorsey won by checkmate"]

1. d4 {[%clk 0:04:59.2]} 1... e6 {[%clk 0:04:59.1]} 2. c4 {[%clk 0:04:58]} 2...
d5 {[%clk 0:04:58.8]} 3. Nc3 {[%clk 0:04:56.9]} 3... Bb4 {[%clk 0:04:54.9]} 4.
e3 {[%clk 0:04:55.1]} 4... c5 {[%clk 0:04:52.5]} 5. Ne2 {[%clk 0:04:53.9]} 5...
Nc6 {[%clk 0:04:50.6]} 6. a3 {[%clk 0:04:44.1]} 6... Bxc3+ {[%clk 0:04:49.2]} 7.
bxc3 {[%clk 0:04:43.3]} 7... cxd4 {[%clk 0:04:42.8]} 8. cxd4 {[%clk 0:04:42.6]}
8... dxc4 {[%clk 0:04:41.3]} 9. Nc3 {[%clk 0:04:35.4]} 9... a6 {[%clk
0:04:38.3]} 10. Bxc4 {[%clk 0:04:33.8]} 10... b5 {[%clk 0:04:34.7]} 11. Ba2
{[%clk 0:04:31.6]} 11... Nf6 {[%clk 0:04:31.3]} 12. O-O {[%clk 0:04:29.7]} 12...
O-O {[%clk 0:04:29.9]} 13. Qd2 {[%clk 0:04:17]} 13... Bb7 {[%clk 0:04:28.6]} 14.
Bb2 {[%clk 0:04:10.6]} 14... Rc8 {[%clk 0:04:26.6]} 15. Rac1 {[%clk 0:04:07.4]}
15... Na7 {[%clk 0:04:24.3]} 16. Bb1 {[%clk 0:04:04.8]} 16... Nd5 {[%clk
0:04:10.4]} 17. Nxd5 {[%clk 0:04:01.2]} 17... Qxd5 {[%clk 0:04:09]} 18. e4
{[%clk 0:03:47.8]} 18... Qd7 {[%clk 0:04:05.3]} 19. Qd3 {[%clk 0:03:37.8]} 19...
Rxc1 {[%clk 0:03:53.9]} 20. Rxc1 {[%clk 0:03:36.2]} 20... Rc8 {[%clk 0:03:47.6]}
21. Rxc8+ {[%clk 0:03:32]} 21... Qxc8 {[%clk 0:03:46.3]} 22. e5 {[%clk
0:03:30.3]} 22... g6 {[%clk 0:03:44.9]} 23. Qd2 {[%clk 0:03:18.3]} 23... Bd5
{[%clk 0:03:42.9]} 24. Bc1 {[%clk 0:03:00.4]} 24... Qc4 {[%clk 0:03:25]} 25. h4
{[%clk 0:02:36.7]} 25... Nc6 {[%clk 0:03:24.5]} 26. Bb2 {[%clk 0:02:26.8]} 26...
Ne7 {[%clk 0:03:07.2]} 27. h5 {[%clk 0:02:22.4]} 27... Nf5 {[%clk 0:02:58.1]}
28. hxg6 {[%clk 0:02:17.4]} 28... hxg6 {[%clk 0:02:56.7]} 29. Bxf5 {[%clk
0:02:12.4]} 29... gxf5 {[%clk 0:02:46.3]} 30. Qg5+ {[%clk 0:01:49.7]} 30... Kf8
{[%clk 0:02:36.9]} 31. Bc1 {[%clk 0:01:33.4]} 31... Qxd4 {[%clk 0:02:20.9]} 32.
Be3 {[%clk 0:01:15.2]} 32... Qxe5 {[%clk 0:02:12.3]} 33. Bc5+ {[%clk 0:01:04.2]}
33... Qd6 {[%clk 0:02:02.1]} 34. Bxd6+ {[%clk 0:01:02.6]} 34... Ke8 {[%clk
0:02:01.2]} 35. Qe7# {[%clk 0:01:01.6]} 1-0

[Event "Live Chess"]
[Site "Chess.com"]
[Date "2023.05.21"]
[Round "-"]
[White "TheSmoulderingMaster"]
[Black "seasidecastle27"]
[Result "0-1"]
[WhiteElo "1640"]
[BlackElo "1851"]
[TimeControl "300"]
[EndTime "4:52:20 PDT"]
[Termination "seasidecastle27 won by resignation"]

1. e4 {[%clk 0:04:58.9]} 1... d6 {[%clk 0:04:58.7]} 2. d4 {[%clk 0:04:57.4]}
2... e5 {[%clk 0:04:57.2]} 3. Nf3 {[%clk 0:04:54.8]} 3... Bg4 {[%clk 0:04:53.1]}
4. dxe5 {[%clk 0:04:52.7]} 4... Nc6 {[%clk 0:04:49.6]} 5. exd6 {[%clk
0:04:51.1]} 5... Bxd6 {[%clk 0:04:47.7]} 6. Bb5 {[%clk 0:04:48.6]} 6... Qe7
{[%clk 0:04:46.1]} 7. O-O {[%clk 0:04:47.2]} 7... O-O-O {[%clk 0:04:43.9]} 8.
Nc3 {[%clk 0:04:41.7]} 8... Bxh2+ {[%clk 0:04:38.9]} 9. Kh1 {[%clk 0:04:38.3]}
9... Rxd1 {[%clk 0:04:36.1]} 10. Rxd1 {[%clk 0:04:36.2]} 10... Bxf3 {[%clk
0:04:32.7]} 11. gxf3 {[%clk 0:04:35]} 11... Qh4 {[%clk 0:04:30.9]} 12. Kg2
{[%clk 0:04:26.1]} 12... Bf4 {[%clk 0:04:16.3]} 13. Rh1 {[%clk 0:04:21.3]} 13...
Qg5+ {[%clk 0:04:12.9]} 14. Kf1 {[%clk 0:04:20.4]} 14... Bxc1 {[%clk 0:04:11.1]}
0-1

[Event "Live Chess"]
[Site "Chess.com"]
[Date "2023.05.21"]
[Round "-"]
[White "Hacker_2009"]
[Black "JohanKjeldahl"]
[Result "1-0"]
[WhiteElo "1927"]
[BlackElo "1872"]
[TimeControl "300"]
[EndTime "4:52:37 PDT"]
[Termination "Hacker_2009 won by resignation"]

1. d4 {[%clk 0:04:57.7]} 1... Nf6 {[%clk 0:04:58.1]} 2. Nf3 {[%clk 0:04:54.9]}
2... e6 {[%clk 0:04:56]} 3. c4 {[%clk 0:04:52.1]} 3... b6 {[%clk 0:04:53.3]} 4.
Nc3 {[%clk 0:04:50.4]} 4... Bb7 {[%clk 0:04:51.8]} 5. e3 {[%clk 0:04:49.4]} 5...
Bb4 {[%clk 0:04:50.2]} 6. Qc2 {[%clk 0:04:47.9]} 6... O-O {[%clk 0:04:49.2]} 7.
Be2 {[%clk 0:04:45]} 7... d5 {[%clk 0:04:48.1]} 8. a3 {[%clk 0:04:43.8]} 8...
Bxc3+ {[%clk 0:04:46.4]} 9. Qxc3 {[%clk 0:04:43.1]} 9... Nbd7 {[%clk 0:04:45.1]}
10. O-O {[%clk 0:04:41.8]} 10... Ne4 {[%clk 0:04:43.2]} 11. Qc2 {[%clk
0:04:40.3]} 11... f5 {[%clk 0:04:41.6]} 12. b4 {[%clk 0:04:39.3]} 12... Ndf6
{[%clk 0:04:37.2]} 13. c5 {[%clk 0:04:38.3]} 13... c6 {[%clk 0:04:35.2]} 14. Bb2
{[%clk 0:04:36]} 14... Qe8 {[%clk 0:04:30]} 15. Rac1 {[%clk 0:04:32.9]} 15... b5
{[%clk 0:04:27.4]} 16. Ne5 {[%clk 0:04:31.1]} 16... a5 {[%clk 0:04:25.4]} 17.
Ra1 {[%clk 0:04:20.8]} 17... g5 {[%clk 0:04:12.1]} 18. f4 {[%clk 0:04:11]} 18...
g4 {[%clk 0:04:00.8]} 19. Bd3 {[%clk 0:04:02.6]} 19... Qh5 {[%clk 0:03:54.4]}
20. g3 {[%clk 0:03:59.4]} 20... Qh3 {[%clk 0:03:41.3]} 21. Qg2 {[%clk
0:03:56.9]} 21... Qxg2+ {[%clk 0:03:37.2]} 22. Kxg2 {[%clk 0:03:56.8]} 22... a4
{[%clk 0:03:24.9]} 23. Rac1 {[%clk 0:03:43.6]} 23... Rac8 {[%clk 0:03:13]} 24.
h3 {[%clk 0:03:38.3]} 24... h5 {[%clk 0:03:11]} 25. hxg4 {[%clk 0:03:36.4]}
25... hxg4 {[%clk 0:03:05.5]} 26. Rh1 {[%clk 0:03:33.2]} 26... Kg7 {[%clk
0:03:04.2]} 27. Rh2 {[%clk 0:03:27.7]} 27... Rh8 {[%clk 0:03:02.8]} 28. Rch1
{[%clk 0:03:26.2]} 28... Rxh2+ {[%clk 0:02:53.2]} 29. Rxh2 {[%clk 0:03:24.6]}
29... Rh8 {[%clk 0:02:51.9]} 30. Rxh8 {[%clk 0:03:11.9]} 30... Kxh8 {[%clk
0:02:49]} 31. Nf7+ {[%clk 0:03:10.1]} 31... Kg7 {[%clk 0:02:46.1]} 32. Nd8
{[%clk 0:03:09.5]} 32... Ba8 {[%clk 0:02:38.9]} 33. Nxe6+ {[%clk 0:03:07.8]}
33... Kg6 {[%clk 0:02:32.9]} 34. Nd8 {[%clk 0:02:45.2]} 34... Nh5 {[%clk
0:02:27.1]} 35. Bxe4 {[%clk 0:02:42.3]} 35... fxe4 {[%clk 0:02:24.2]} 36. Ne6
{[%clk 0:02:38.5]} 36... Kf5 {[%clk 0:02:14.3]} 37. Nd8 {[%clk 0:02:34.1]} 37...
Ng7 {[%clk 0:02:05.8]} 38. Nf7 {[%clk 0:02:32.2]} 38... Ke6 {[%clk 0:02:00.9]}
39. Nh6 {[%clk 0:02:26.1]} 39... Nf5 {[%clk 0:01:49]} 40. Nxg4 {[%clk
0:02:24.4]} 40... Bb7 {[%clk 0:01:47.8]} 41. Bc1 {[%clk 0:02:22.2]} 41... Bc8
{[%clk 0:01:46.2]} 42. Ne5 {[%clk 0:02:18.5]} 42... Bb7 {[%clk 0:01:43.5]} 43.
g4 {[%clk 0:02:17.6]} 43... Nh6 {[%clk 0:01:40.5]} 44. Kg3 {[%clk 0:02:15.4]}
44... Kf6 {[%clk 0:01:37.4]} 45. g5+ {[%clk 0:02:13.2]} 1-0